bitfinex-derivatives/quotes_ETHF0:USTF0_20260102
["timestamp","ask_amount","ask_price","bid_price","bid_amount"]
[1767374184117,0.00476773,3149.4,3147.4,3.65026008]
[1767374184321,0.49730488,3149.4,3147.4,3.177]
[1767374184619,0.49253715,3149.2,3147.3,0.00399576]
[1767374184915,0.49253715,3149.0,3147.3,0.00399576]
[1767374185120,0.49253715,3148.8,3147.3,0.00399576]
[1767374185922,0.49253715,3148.8,3147.7,0.00476773]
[1767374186116,1.39873816,3148.7,3147.3,0.00399576]
[1767374186321,0.49253715,3148.6,3147.3,0.00399576]
[1767374187119,0.49253715,3148.6,3147.6,0.00476773]
[1767374187320,0.15887,3148.9,3147.6,0.00476773]
[1767374190115,0.3166,3149.3,3147.6,0.00476773]
[1767374190314,0.3166,3149.3,3147.7,0.15893]
[1767374190527,0.3166,3149.3,3147.8,0.49045601]
[1767374191018,0.3166,3149.3,3147.6,0.00476773]
[1767374191225,0.78142105,3149.3,3147.6,0.00476773]
[1767374191421,0.94027105,3149.3,3147.6,0.00476773]
[1767374192420,0.15885,3149.2,3147.6,0.00476773]
[1767374192617,0.15886,3149.0,3147.6,0.00476773]
[1767374193023,0.46482105,3149.2,3147.6,0.00476773]
[1767374193726,0.3166,3149.3,3147.6,0.00476773]
[1767374194219,0.78142105,3149.3,3147.6,0.00476773]
[1767374195327,0.94027105,3149.3,3147.6,0.00476773]
[1767374195529,0.15886,3149.1,3147.6,0.00476773]
[1767374195925,0.62368105,3149.0,3147.6,0.00476773]
[1767374196426,0.62370105,3148.8,3147.6,0.00476773]
[1767374196730,0.15892,3148.0,3145.9,0.49045601]
[1767374197531,0.46482105,3148.3,3146.6,0.00476773]
[1767374197829,0.46719612,3148.3,3146.6,0.00735893]
[1767374198620,0.00476773,3147.8,3146.6,0.00735893]
[1767374199222,0.16368773,3147.8,3146.6,0.00735893]
[1767374199421,0.46482105,3147.7,3145.6,0.15903]
[1767374199921,0.46482105,3147.7,3145.6,0.64948601]
[1767374200122,0.46482105,3147.7,3145.7,0.49045601]
[1767374200323,0.00476773,3147.8,3146.4,0.00476773]
[1767374202635,0.00476773,3147.8,3146.4,0.49522374]
[1767374202825,0.00237507,3148.3,3146.6,0.15898]
[1767374203022,3.95942105,3149.3,3146.9,0.64942601]
[1767374203333,0.78142105,3149.3,3147.2,0.64940601]
[1767374203529,0.78142105,3149.3,3147.3,0.49045601]
[1767374203829,0.00476773,3148.6,3148.0,0.00476773]
[1767374204024,0.00853373,3148.6,3148.0,0.00702758]
[1767374204828,0.00853373,3148.6,3147.2,0.15895]
[1767374205228,0.94027105,3149.3,3147.3,0.49045601]
[1767374205527,0.3166,3149.3,3147.5,0.64939601]
[1767374206324,0.00476773,3148.7,3148.1,0.00476773]
[1767374207136,0.00476773,3148.7,3147.5,0.00261554]
[1767374208131,0.00476773,3148.7,3147.8,0.00476773]
[1767374209329,0.00476773,3148.7,3147.5,0.00261554]
[1767374209732,0.00476773,3148.7,3146.7,1.19860832]
[1767374209733,0.46482105,3148.4,3146.6,3.90280433]
[1767374209929,0.46482105,3148.3,3146.3,0.49045601]
[1767374210135,0.46482105,3148.0,3146.0,3.90280433]
[1767374210332,0.15892,3147.9,3145.8,0.15902]
[1767374210535,0.62374105,3147.9,3146.6,0.0031785]
[1767374210835,0.62374105,3147.9,3146.6,0.00621015]
[1767374212238,0.46482105,3147.8,3146.6,0.00621015]
[1767374212833,7.39,3148.4,3146.6,0.00621015]
[1767374212834,0.46482105,3148.4,3146.6,0.00621015]
[1767374213836,0.15888,3148.6,3146.6,0.00621015]
[1767374214338,0.3167,3148.5,3146.6,0.00621015]
[1767374215233,0.47559,3148.5,3146.6,0.00621015]
[1767374215424,0.15889,3148.4,3146.6,0.00621015]
[1767374215631,0.15892,3147.8,3146.6,0.00621015]
[1767374218234,0.46482105,3148.0,3146.6,0.00621015]
[1767374218538,0.3167,3148.5,3145.3,1.19860832]
[1767374218539,0.15896,3147.2,3145.3,1.19860832]
[1767374219032,0.15896,3147.2,3145.1,0.15906]
[1767374219033,0.46482105,3147.1,3145.0,0.49045601]
[1767374219239,0.15898,3146.7,3144.9,3.178]
[1767374219431,0.00476773,3146.1,3144.9,3.18037764]
[1767374219631,0.16216073,3146.7,3145.0,0.50560072]
[1767374219835,0.16216073,3146.7,3144.9,0.00237764]
[1767374219836,0.66935349,3146.7,3144.9,0.00237764]
[1767374220345,0.66617276,3146.6,3144.9,0.00237764]
[1767374220537,0.00318073,3146.7,3144.9,0.50797836]
[1767374220733,0.00318073,3146.7,3145.4,0.00476773]
[1767374221046,0.15895,3147.3,3145.6,1.19860832]
[1767374221240,0.50719276,3147.8,3145.6,1.19860832]
[1767374221444,0.50719276,3147.8,3145.6,1.70420904]
[1767374221643,0.66613276,3147.6,3145.6,0.50560072]
[1767374221845,0.00476773,3146.9,3145.6,0.50560072]
[1767374222046,0.00838037,3146.9,3145.6,0.50560072]
[1767374222642,0.50719276,3148.2,3146.6,1.19860832]
[1767374222848,0.50719276,3148.8,3146.7,0.50560072]
[1767374223741,0.00476773,3147.9,3147.3,0.00476773]
[1767374224045,0.00476773,3147.9,3146.2,3.90280433]
[1767374224253,0.00476773,3147.9,3145.9,0.15902]
[1767374224545,0.51196049,3147.9,3145.9,0.15902]
[1767374224945,0.51196049,3147.9,3146.6,0.00476773]
[1767374225139,0.00476773,3147.9,3146.6,0.00476773]
[1767374225546,0.00476773,3147.9,3146.7,1.19860832]
[1767374226049,0.31825956,3148.5,3146.9,0.50560072]
[1767374226948,0.82545232,3148.5,3146.6,0.00476773]
[1767374227153,0.51196049,3148.0,3146.6,0.00476773]
[1767374227447,0.51196049,3148.0,3145.7,0.50560072]
[1767374227649,0.15894,3147.4,3145.3,1.19860832]
[1767374227847,40.80476773,3148.0,3145.9,0.5083008]
[1767374228049,0.00476773,3148.0,3146.4,0.50560072]
[1767374228453,0.00476773,3148.0,3146.9,0.00476773]
[1767374233048,0.15892,3147.9,3146.9,0.00476773]
[1767374233255,0.15892,3147.9,3146.0,3.178]
[1767374234248,0.15892,3147.9,3146.6,0.00476773]
[1767374235046,0.15893,3147.8,3146.6,0.00476773]
[1767374235243,0.66612276,3147.8,3146.6,0.00476773]
[1767374235548,0.15894,3147.5,3146.6,0.00476773]
[1767374235752,0.15895,3147.2,3145.9,0.00270008]
[1767374235945,0.50719276,3146.8,3145.5,3.90280433]
[1767374236147,0.15899,3146.5,3144.5,4.39581057]
[1767374236351,0.15899,3146.5,3144.6,0.50560072]
[1767374236853,0.00476773,3145.9,3144.6,0.50560072]
[1767374237043,0.00739983,3145.9,3144.6,0.50911326]
[1767374237640,0.15899,3146.5,3144.8,1.19860832]
[1767374237857,0.15899,3146.5,3144.8,1.70420904]
[1767374238246,0.50719276,3146.8,3144.8,1.70420904]
[1767374238653,0.00476773,3146.1,3145.5,0.00476773]
[1767374239647,0.00476773,3146.1,3144.6,0.00351254]
[1767374240655,0.00476773,3146.1,3144.6,0.50911326]
[1767374245466,0.00476773,3146.1,3144.7,0.50560072]
[1767374246255,0.00400196,3146.8,3145.1,0.50560072]
[1767374247267,0.00476773,3146.3,3145.6,0.00476773]
[1767374247459,0.00400196,3146.8,3145.6,0.00476773]
[1767374247659,0.317,3146.2,3145.6,0.00476773]
[1767374247966,0.00400196,3146.8,3145.6,0.00476773]
[1767374248671,0.00476773,3146.5,3145.6,0.00476773]
[1767374252365,0.00476773,3146.5,3145.0,0.49887266]
[1767374252565,0.15905,3145.3,3143.6,0.49887266]
[1767374253065,0.49495543,3145.8,3143.1,0.49887266]
[1767374253260,0.49495543,3145.3,3143.1,0.49887266]
[1767374253456,0.00476773,3144.5,3142.7,0.49887266]
[1767374253661,0.15906,3145.2,3143.2,0.49887266]
[1767374253871,0.65401543,3145.2,3143.2,0.49887266]
[1767374254072,0.15906,3145.1,3143.2,0.49887266]
[1767374254273,0.15907,3145.0,3142.7,0.0041238]
[1767374254571,0.49495543,3145.0,3142.7,0.0041238]
[1767374254768,0.00476773,3144.2,3142.7,0.0041238]
[1767374255166,0.49972316,3144.2,3142.7,0.0041238]
[1767374255368,0.15911,3144.1,3142.7,0.0041238]
[1767374256566,0.15911,3144.1,3142.7,0.50299646]
[1767374257462,0.15911,3144.1,3142.7,0.0041238]
[1767374257977,0.00476773,3144.2,3142.7,0.50299646]
[1767374258675,0.00476773,3144.2,3142.9,0.49887266]
[1767374260476,0.15908,3144.8,3143.2,0.49887266]
[1767374260671,0.00384751,3145.0,3143.2,0.49887266]
[1767374261374,0.00476773,3144.4,3143.1,1.35776832]
[1767374261571,0.00476773,3144.4,3142.7,0.0041238]
[1767374261572,0.00476773,3144.4,3142.7,0.50299646]
[1767374262975,0.00476773,3144.4,3143.1,0.49887266]
[1767374263167,0.00384751,3145.0,3143.4,0.49887266]
[1767374263775,0.00384751,3145.0,3143.4,0.27887266]
[1767374264575,0.00384751,3145.0,3143.9,0.00476773]
[1767374265677,0.00476773,3144.8,3143.9,0.00476773]
[1767374266382,0.15902,3145.9,3143.9,0.50364039]
[1767374267371,0.00476773,3145.2,3143.9,0.50364039]
[1767374271188,0.16040347,3145.9,3143.9,0.50364039]
[1767374271189,0.00138347,3145.9,3144.3,0.49887266]
[1767374271382,0.00138347,3145.9,3144.4,0.49887266]
[1767374271883,0.00138347,3145.9,3144.3,0.1591]
[1767374272388,0.00476773,3145.4,3144.3,0.1591]
[1767374276082,0.00476773,3145.4,3144.2,0.49887266]
[1767374276884,0.00138347,3145.9,3144.6,0.49887266]
[1767374277585,0.00138347,3145.9,3144.8,0.49887266]
[1767374277790,0.49495543,3147.0,3144.7,4.07611115]
[1767374278095,0.00476773,3146.2,3144.4,0.65796266]
[1767374279190,0.00476773,3146.2,3145.0,0.00476773]
[1767374279390,0.00476773,3146.2,3145.0,0.00821425]
[1767374280987,10.336,3147.2,3145.4,0.15904]
[1767374281193,0.49622607,3147.6,3145.5,0.46971192]
[1767374281194,0.49622607,3147.5,3145.5,0.46971192]
[1767374281789,0.49622607,3148.0,3146.0,0.46971192]
[1767374281993,0.00476773,3147.3,3146.7,0.00476773]
[1767374282190,0.49622607,3148.0,3146.7,0.00476773]
[1767374282389,0.15887,3148.8,3146.7,0.00476773]
[1767374282583,0.49622607,3148.6,3146.7,0.00476773]
[1767374282886,0.65511607,3148.6,3146.7,0.00476773]
[1767374283090,0.0031785,3148.0,3146.7,0.00476773]
[1767374283297,0.0031785,3148.0,3146.7,0.47447965]
[1767374284192,0.65511607,3148.6,3146.7,0.47447965]
[1767374284193,0.15889,3148.6,3146.7,0.47447965]
[1767374284694,0.49622607,3148.5,3146.7,7.73e-06]
[1767374284886,0.49622607,3148.3,3145.5,0.46971192]
[1767374285495,0.15894,3147.5,3145.5,0.46971192]
[1767374285996,0.00476773,3146.8,3146.2,0.00476773]
[1767374286899,0.65513607,3148.1,3146.2,0.00476773]
[1767374287491,0.65515607,3147.7,3146.2,0.00476773]
[1767374287686,0.49622607,3147.6,3146.2,0.00476773]
[1767374288598,0.15894,3147.4,3146.2,0.00476773]
[1767374289398,0.49622607,3147.6,3146.2,0.00476773]
[1767374289600,0.65518607,3147.0,3145.1,3.18]
[1767374289801,0.65518607,3147.0,3145.1,3.64971192]
[1767374290099,0.15897,3146.9,3145.1,3.64971192]
[1767374290495,0.00476773,3146.3,3145.7,0.00476773]
[1767374291794,0.00476773,3146.3,3145.0,0.00344652]
[1767374292795,0.00476773,3146.3,3145.3,0.00476773]
[1767374293594,0.5009938,3146.3,3145.0,0.00344652]
[1767374293996,0.15903,3145.8,3145.0,0.00344652]
[1767374294297,0.49622607,3145.8,3143.3,0.46971192]
[1767374294495,0.49622607,3145.6,3143.3,0.46971192]
[1767374294800,0.15905,3145.4,3144.3,0.00476773]
[1767374295295,0.15905,3145.4,3144.3,0.00845878]
[1767374295500,0.16249652,3145.4,3144.3,0.00845878]
[1767374303901,0.00476773,3146.3,3144.5,0.46971192]
[1767374304297,0.159,3146.2,3144.5,0.46971192]
[1767374304501,0.159,3146.2,3144.4,0.15909]
[1767374304709,0.65522607,3146.2,3144.4,0.15909]
[1767374306808,0.159,3146.2,3144.5,0.46971192]
[1767374307317,0.65718413,3146.2,3144.3,0.00845878]
[1767374307606,0.49818413,3146.1,3144.3,0.00845878]
[1767374307805,0.49818413,3146.1,3142.7,6.70536306]
[1767374307806,0.15907,3145.0,3143.2,3.18]
[1767374308113,0.15907,3144.9,3143.2,3.18]
[1767374308308,0.49818413,3145.0,3143.2,3.18]
[1767374308613,0.1591,3144.4,3142.3,3.66205164]
[1767374308906,0.00476773,3143.7,3143.0,0.00476773]
[1767374309107,0.15907,3145.0,3143.0,0.00476773]
[1767374309504,0.15907,3145.0,3143.0,0.46601986]
[1767374310104,0.00476773,3144.3,3143.0,0.46601986]
[1767374311015,0.00476773,3144.3,3143.1,0.46125213]
[1767374312115,8.0141359,3145.8,3143.3,0.46125213]
[1767374312320,0.6161359,3145.7,3143.4,0.46125213]
[1767374312915,0.4571059,3145.4,3143.4,0.46125213]
[1767374313110,0.00476773,3144.7,3144.1,0.00476773]
[1767374313819,0.00476773,3144.7,3142.9,3.64225213]
[1767374314021,0.46187363,3144.7,3142.9,3.64225213]
[1767374314225,0.4571059,3144.6,3142.6,0.15918]
[1767374314609,0.16384773,3144.7,3142.7,0.62043213]
[1767374314808,0.00476773,3144.7,3143.0,0.46125213]
[1767374315025,0.00476773,3144.7,3143.4,0.00476773]
[1767374315517,0.62095363,3144.7,3143.4,0.00476773]
[1767374316323,0.15909,3144.5,3143.4,0.00476773]
[1767374317031,0.6162359,3143.7,3142.3,0.00276525]
[1767374317325,0.00476773,3144.7,3142.3,0.00276525]
[1767374317326,0.4571059,3143.5,3142.3,0.00276525]
[1767374317719,0.6162459,3143.5,3142.3,0.00276525]
[1767374318022,0.6162459,3143.5,3142.6,0.00476773]
[1767374318926,41.2571059,3144.0,3142.6,0.00476773]
[1767374319129,0.4571059,3144.0,3142.6,0.00476773]
[1767374319329,0.6162259,3143.9,3142.6,0.00476773]
[1767374320222,0.4571059,3144.4,3142.6,0.00476773]
[1767374320919,0.4571059,3144.2,3142.6,0.00476773]
[1767374321119,0.1591,3144.3,3142.6,0.00476773]
[1767374322221,4.39008,3144.8,3142.6,0.62520986]
[1767374322421,0.15908,3144.8,3142.7,0.46125213]
[1767374322731,25.89248869,3146.6,3143.2,0.46125213]
[1767374322732,3.7981559,3145.4,3143.2,0.46125213]
[1767374323025,0.15905,3145.3,3143.2,0.46125213]
[1767374323424,0.15905,3145.3,3143.3,0.15915]
[1767374323620,0.15905,3145.3,3143.3,0.46125213]
[1767374324324,4.231,3145.9,3143.1,7.556]
[1767374324325,0.6161259,3145.9,3143.6,0.46125213]
[1767374324518,0.6161259,3145.9,3143.9,0.62037213]
[1767374324721,0.6161259,3145.9,3144.0,0.46125213]
[1767374325627,0.00476773,3145.3,3144.6,0.00476773]
[1767374325815,0.00476773,3145.3,3144.6,0.00851501]
[1767374326018,0.4571059,3146.5,3144.6,0.00851501]
[1767374326828,0.6160959,3146.5,3144.6,0.00851501]
[1767374327031,0.00476773,3145.9,3144.6,0.00851501]
[1767374331329,0.46187363,3145.9,3144.6,0.00851501]
[1767374333532,0.00476773,3145.9,3144.6,0.00851501]
[1767374334843,0.46187363,3145.9,3144.6,0.00851501]
[1767374335239,0.00476773,3145.9,3144.6,0.00851501]
[1767374340953,0.00476773,3145.9,3144.6,0.47377573]
[1767374341454,0.00476773,3145.9,3144.6,0.00851501]
[1767374343750,0.00476773,3145.9,3144.6,0.47377573]
[1767374344054,0.15897,3146.9,3145.0,0.15906]
[1767374344445,0.62968335,3146.9,3145.0,0.15906]
[1767374344641,0.62968335,3146.9,3144.6,1.20442273]
[1767374344642,0.47071335,3146.9,3145.2,0.46526072]
[1767374344849,0.15895,3147.2,3145.7,0.00476773]
[1767374344850,0.00476773,3146.4,3145.7,0.00476773]
[1767374345050,0.62970335,3146.6,3145.7,0.00476773]
[1767374345257,0.47071335,3146.5,3144.6,0.16282728]
[1767374345557,0.47071335,3146.2,3144.6,0.00374728]
[1767374346354,0.00476773,3145.7,3145.1,0.00476773]
[1767374347952,0.15899,3146.6,3145.1,0.00476773]
[1767374348344,0.15896,3147.1,3145.1,0.47002845]
[1767374348552,0.47071335,3146.9,3145.1,0.46526072]
[1767374348848,0.15896,3147.0,3145.7,0.00476773]
[1767374349249,0.62967335,3147.0,3145.7,0.00476773]
[1767374350850,0.15897,3146.9,3145.7,0.00476773]
[1767374353354,0.47071335,3146.8,3144.9,3.92738418]
[1767374353564,0.47071335,3146.5,3144.9,3.92738418]
[1767374353856,0.47071335,3146.5,3144.7,0.46526072]
[1767374353857,0.15899,3146.6,3144.8,0.46526072]
[1767374354455,0.00476773,3146.0,3145.4,0.00476773]
[1767374355455,0.00476773,3146.0,3144.8,3.92738418]
[1767374355650,0.00476773,3146.0,3144.6,0.00374728]
[1767374356453,0.00476773,3146.0,3145.0,0.00476773]
[1767374356857,0.15902,3145.9,3145.0,0.00476773]
[1767374358558,0.62974335,3145.8,3144.6,0.00374728]
[1767374359555,0.15904,3145.6,3144.9,0.00476773]
[1767374359760,0.62975335,3145.5,3144.6,0.00374728]
[1767374360756,0.62976335,3145.4,3143.7,3.92738418]
[1767374360958,0.47071335,3145.9,3144.0,0.46526072]
[1767374361158,0.16378773,3146.0,3144.2,0.46526072]
[1767374361352,0.00476773,3146.0,3144.5,0.46526072]
[1767374361553,0.00476773,3146.0,3144.7,0.46526072]
[1767374361765,0.00724329,3146.0,3145.0,0.00476773]
[1767374363066,0.00724329,3146.0,3145.0,0.47002845]
[1767374363862,0.62968335,3146.9,3145.0,0.47002845]
[1767374364068,0.15897,3146.9,3145.1,0.46526072]
[1767374364861,0.00476773,3146.3,3145.4,0.46526072]
[1767374365163,0.16024172,3146.9,3145.4,0.46526072]
[1767374365164,0.00127172,3146.9,3145.8,1.66593617]
[1767374365965,0.00476773,3146.7,3145.8,1.66593617]
[1767374366168,0.15893,3147.6,3145.9,0.46526072]
[1767374366871,0.47071335,3147.9,3145.9,0.46526072]
[1767374367169,0.00476773,3147.2,3146.6,0.00476773]
[1767374369272,0.00476773,3147.2,3145.7,4.81839279]
[1767374369469,0.00476773,3147.2,3145.7,0.45039279]
[1767374369967,0.00476773,3147.2,3145.5,4.368]
[1767374370172,0.00476773,3147.2,3146.0,0.00476773]
[1767374370964,0.46094954,3147.1,3146.0,0.00476773]
[1767374371167,0.46094954,3147.0,3146.0,0.00476773]
[1767374371564,0.61992954,3147.0,3146.0,0.00476773]
[1767374372473,0.00476773,3147.2,3146.0,0.00476773]
[1767374372775,3.179,3147.9,3146.0,0.45516052]
[1767374373565,0.46094954,3148.0,3146.1,0.45039279]
[1767374373767,0.00476773,3147.4,3146.1,0.45039279]
[1767374374669,0.00476773,3147.4,3146.1,0.60941279]
[1767374374868,0.00476773,3147.4,3146.2,0.45039279]
[1767374375672,0.00476773,3147.4,3146.1,0.15902]
[1767374376173,0.15897,3147.2,3146.0,0.00476773]
[1767374376368,0.15898,3147.1,3146.0,0.00476773]
[1767374376577,0.15899,3146.9,3146.0,0.00476773]
[1767374377073,0.00476773,3147.4,3146.0,0.00476773]
[1767374377374,0.46094954,3147.3,3146.0,0.00476773]
[1767374377968,0.61991954,3147.3,3146.0,0.00476773]
[1767374378166,0.15898,3147.1,3146.0,0.00476773]
[1767374378769,0.61992954,3147.0,3146.0,0.00476773]
[1767374380884,0.00476773,3147.4,3146.0,0.00476773]
[1767374381381,0.15897,3147.3,3146.0,0.00476773]
[1767374382088,0.15899,3146.8,3146.0,0.00476773]
[1767374385180,0.15899,3146.8,3145.1,0.15907]
[1767374385384,0.15899,3146.8,3145.1,0.60946279]
[1767374386387,0.15899,3146.8,3145.6,0.00476773]
[1767374386588,0.15901,3146.5,3145.6,0.00476773]
[1767374386791,0.46094954,3146.6,3144.7,0.00278736]
[1767374387875,0.46094954,3146.6,3145.3,0.00476773]
[1767374388589,0.159,3146.7,3145.3,0.00476773]
[1767374389091,0.15901,3146.4,3145.3,0.00476773]
[1767374389482,0.15902,3146.2,3145.3,0.00476773]
[1767374391081,0.3178,3146.3,3145.3,0.00476773]
[1767374391785,0.77874954,3146.3,3145.3,0.00476773]
[1767374391987,0.15906,3145.6,3144.7,0.00278736]
[1767374392189,0.15906,3145.5,3144.7,0.00278736]
[1767374392392,0.15907,3145.3,3143.3,4.37777697]
[1767374392789,0.15908,3145.1,3143.3,0.45039279]
[1767374392990,0.00476773,3144.5,3143.9,0.00476773]
[1767374393391,0.00754177,3144.5,3143.9,0.00793115]
[1767374393692,0.00754177,3144.5,3142.6,8.54917586]
[1767374393693,0.00754177,3144.5,3142.6,4.366]
[1767374393893,0.15912,3144.3,3142.6,4.366]
[1767374394096,0.15913,3144.1,3142.3,0.45039279]
[1767374394595,0.15913,3144.1,3142.9,0.0031785]
[1767374395193,0.62009954,3143.6,3142.3,0.00378454]
[1767374395698,0.46094954,3143.6,3142.3,0.00378454]
[1767374395895,0.62006954,3144.3,3142.3,0.00378454]
[1767374396096,0.62006954,3144.3,3142.3,0.45417733]
[1767374397000,0.46094954,3144.2,3142.3,0.45417733]
[1767374397199,0.46094954,3144.1,3142.3,0.00378454]
[1767374397701,0.62007954,3144.0,3142.3,0.00378454]
[1767374398106,0.15913,3144.0,3142.3,0.45417733]
[1767374398503,0.46849131,3144.5,3142.3,0.45417733]
[1767374398801,0.46849131,3144.5,3142.4,0.45039279]
[1767374399000,0.46094954,3144.4,3142.4,0.45039279]
[1767374399305,0.49594481,3144.3,3142.3,0.00378454]
[1767374399605,0.49594481,3144.0,3142.3,0.00378454]
[1767374400694,0.49594481,3143.8,3142.3,0.00378454]
[1767374400900,0.49594481,3143.5,3142.3,0.00378454]
[1767374401402,0.49594481,3142.6,3141.0,0.7259328]
[1767374401608,0.00476773,3142.1,3141.0,0.7259328]
[1767374402306,0.00706503,3142.1,3139.8,0.49760132]
[1767374402701,0.15924,3141.9,3139.8,0.49760132]
[1767374402907,0.00706503,3142.1,3139.8,0.49760132]
[1767374403105,0.00706503,3142.1,3140.0,0.49760132]
[1767374403409,0.00706503,3142.1,3140.2,0.49760132]
[1767374403904,0.15924,3141.9,3140.2,0.49760132]
[1767374404105,0.15924,3141.8,3140.0,0.00406562]
[1767374404311,0.15926,3141.5,3140.0,0.00406562]
[1767374405308,0.15926,3141.5,3140.0,0.50166694]
[1767374405502,0.15926,3141.5,3140.0,0.00406562]
[1767374405904,0.15926,3141.5,3140.0,0.50166694]
[1767374406802,0.65520481,3141.5,3138.2,0.15943]
[1767374407003,0.0047754,3140.2,3138.3,0.15942]
[1767374407201,0.15926,3141.4,3138.7,5.5674504]
[1767374407401,0.0022973,3142.1,3138.7,1.3606003]
[1767374407607,0.0022973,3142.1,3139.5,0.15936]
[1767374407608,4.238,3142.0,3139.5,0.15936]
[1767374407799,0.0022973,3142.1,3139.7,0.15935]
[1767374408102,0.0022973,3142.1,3139.9,0.15934]
[1767374408304,0.0047754,3141.3,3140.7,0.0047754]
[1767374408507,4.2412973,3142.1,3140.7,0.0047754]
[1767374409010,0.0022973,3142.1,3140.7,0.0047754]
[1767374409397,0.0047754,3141.7,3140.7,0.0047754]
[1767374410203,0.0047754,3141.7,3139.9,0.49760132]
[1767374410204,7.422,3141.6,3139.9,0.49760132]
[1767374410514,4.239,3141.5,3139.9,0.49760132]
[1767374411104,0.0047754,3141.7,3140.4,0.0047754]
[1767374412516,0.65520481,3141.6,3140.4,0.0047754]
[1767374412916,0.15926,3141.6,3140.4,0.0047754]
[1767374413109,7.423,3141.5,3140.4,0.0047754]
[1767374413309,4.239,3141.4,3140.4,0.0047754]
[1767374413604,4.239,3141.4,3139.2,0.49760132]
[1767374413605,0.49594481,3141.3,3139.2,0.49760132]
[1767374413906,0.65521481,3141.3,3139.2,0.49760132]
[1767374414112,4.24,3141.2,3139.2,0.49760132]
[1767374415821,0.15929,3140.9,3138.9,0.15939]
[1767374416013,3.184,3141.4,3139.2,0.49760132]
[1767374416218,0.0047754,3140.6,3139.4,0.49760132]
[1767374417313,3.1862973,3142.1,3139.7,0.49760132]
[1767374417517,4.24,3141.7,3139.7,0.49760132]
[1767374418421,0.0047754,3141.0,3140.4,0.0047754]
[1767374419818,4.241,3141.8,3140.4,0.0047754]
[1767374420019,0.94714339,3141.7,3140.4,0.0047754]
[1767374420215,0.0022973,3142.1,3140.4,0.66168672]
[1767374420416,0.0022973,3142.1,3140.6,0.49760132]
[1767374420614,0.0022973,3142.1,3140.8,0.49760132]
[1767374420814,0.0022973,3142.1,3140.8,0.65689132]
[1767374421019,4.24,3143.0,3141.0,0.49760132]
[1767374421225,0.94843991,3142.9,3141.0,0.49760132]
[1767374421524,0.94843991,3142.8,3141.0,0.49760132]
[1767374421916,0.94843991,3142.8,3140.5,4.5446003]
[1767374421917,0.0047754,3142.2,3141.2,0.49760132]
[1767374422116,0.00759002,3142.2,3141.2,0.50035645]
[1767374422318,0.3181,3142.9,3141.2,0.50035645]
[1767374422610,0.95144356,3142.8,3141.2,0.50035645]
[1767374422814,0.3181,3142.9,3141.2,0.50035645]
[1767374422815,0.95144356,3142.7,3141.2,0.50035645]
[1767374423015,0.95144356,3142.6,3141.2,0.00275513]
[1767374423323,0.0047754,3142.2,3141.2,0.00275513]
[1767374423623,0.95144356,3142.1,3141.2,0.00275513]
[1767374426824,0.0047754,3142.2,3141.2,0.00275513]
[1767374427121,0.0047754,3142.2,3141.2,0.48578814]
[1767374427323,0.0047754,3142.2,3141.2,0.00275513]
[1767374427724,0.48544446,3142.2,3140.4,0.0047754]
[1767374427923,0.15925,3141.8,3140.4,0.0047754]
[1767374428121,0.15925,3141.7,3140.4,0.0047754]
[1767374428521,0.15925,3141.6,3140.4,0.0047754]
[1767374428723,0.15926,3141.5,3140.4,0.00711225]
[1767374429727,2.43283253,3141.5,3140.4,0.00711225]
[1767374430032,0.15926,3141.5,3140.4,0.00711225]
[1767374430934,0.15926,3141.4,3139.6,0.15935]
[1767374431821,0.15926,3141.4,3139.7,0.49202071]
[1767374432025,6.53457253,3141.7,3140.2,0.0047754]
[1767374432229,2.27357253,3141.8,3140.2,0.0047754]
[1767374432429,4.261,3141.8,3140.2,0.0047754]
[1767374432627,2.27357253,3141.9,3140.2,0.0047754]
[1767374432824,4.262,3141.8,3140.2,0.0047754]
[1767374433133,0.0047754,3142.2,3140.5,0.49202071]
[1767374434733,0.0047754,3142.2,3140.5,0.65133071]
[1767374434930,0.0047754,3142.2,3140.8,0.49202071]
[1767374435131,0.0047754,3142.2,3140.8,0.65131071]
[1767374435635,0.0047754,3142.2,3140.8,0.49202071]
[1767374435836,0.0047754,3142.2,3140.3,0.65134071]
[1767374436336,0.3182,3142.1,3140.4,0.49202071]
[1767374437537,0.3182,3142.1,3140.5,0.65133071]
[1767374437928,0.3182,3142.1,3140.2,0.0047754]
[1767374437929,0.3182,3142.1,3141.1,0.15928]
[1767374438234,0.00375784,3142.6,3140.2,0.0047754]
[1767374438235,0.00375784,3142.6,3141.3,0.65129071]
[1767374438934,0.94538226,3142.5,3141.4,0.49202071]
[1767374439233,0.15917,3143.3,3141.4,0.49202071]
[1767374439435,0.47477057,3143.9,3142.0,0.49679611]
[1767374439938,0.47477057,3143.9,3142.1,0.49202071]
[1767374440137,0.00352418,3143.9,3142.1,0.49202071]
[1767374440450,0.0047754,3143.3,3142.1,0.49202071]
[1767374444138,0.0047754,3143.3,3142.0,0.16676625]
[1767374444139,0.0047754,3143.3,3142.0,0.00753625]
[1767374445248,0.318,3143.8,3142.0,0.49955696]
[1767374446435,0.00315803,3143.2,3142.0,0.49955696]
[1767374447239,0.318,3143.8,3142.0,0.49955696]
[1767374447641,0.318,3143.8,3142.4,0.15921]
[1767374447843,7.443,3144.8,3142.6,0.49202071]
[1767374448045,3.183,3144.8,3142.7,0.49202071]
[1767374448250,0.47477057,3145.2,3143.1,0.49202071]
[1767374448445,0.47477057,3145.2,3143.8,0.0047754]
[1767374448845,0.63740846,3145.2,3143.8,0.0047754]
[1767374452755,0.16263789,3145.2,3143.8,0.0047754]
[1767374452949,0.63740846,3145.2,3143.8,0.0047754]
[1767374453145,0.15908,3145.0,3143.8,0.0047754]
[1767374453340,0.15909,3144.9,3143.8,0.0047754]
[1767374453647,0.15909,3144.8,3142.6,0.49202071]
[1767374453853,0.1591,3144.7,3142.6,0.49202071]
[1767374454048,0.47477057,3145.1,3142.6,0.49202071]
[1767374454547,0.0047754,3144.2,3143.5,0.0047754]
[1767374455748,6.0047754,3144.2,3142.0,0.65401156]
[1767374456051,0.15914,3143.8,3142.0,0.49478156]
[1767374456752,0.15915,3143.7,3142.6,0.0047754]
[1767374456954,0.15913,3144.1,3142.6,0.0047754]
[1767374457256,0.47954597,3144.2,3142.6,0.0047754]
[1767374458050,0.15914,3143.9,3142.6,0.0047754]
[1767374458246,0.15915,3143.6,3142.6,0.0047754]
[1767374458448,0.15917,3143.3,3142.6,0.0047754]
[1767374458750,0.15917,3143.3,3142.0,0.00276085]
[1767374458952,0.15918,3143.1,3142.0,0.00276085]
[1767374459548,0.15918,3143.1,3142.2,0.0047754]
[1767374459747,0.47477057,3143.8,3142.2,0.0047754]
[1767374459948,0.49258809,3143.3,3141.0,0.49689919]
[1767374460152,1.20166714,3143.5,3141.0,0.49689919]
[1767374460153,0.15921,3142.5,3141.0,0.49689919]